[Event "Titled Tuesday Blitz May 24 Early 2022"]
[White "Tymrakiewicz, Rafal"]
[Black "Kovalev, Vladislav"]
[WhiteFideId "1108832"]
[BlackFideId "13504398"]
[WhiteElo "2205"]
[BlackElo "2530"]
[Result "0-1"]
[Round "01"]
[TimeControl "180+1"]
[Date "2022.05.25"]
[WhiteClock "0:00:04"]
[BlackClock "0:00:25"]

1. e4 {[%clk 0:02:59]}  e5 {[%clk 0:03:00]} 2. Nf3 {[%clk 0:02:59]}  Nc6 {[%clk 0:03:00]} 3. Nc3 {[%clk 0:02:57]}  Nf6 {[%clk 0:03:00]} 4. Bc4 {[%clk 0:02:56]}  Nxe4 {[%clk 0:03:00]} 5. O-O {[%clk 0:02:44]}  Nf6 {[%clk 0:02:29]} 6. Re1 {[%clk 0:02:38]}  Be7 {[%clk 0:02:16]} 7. Nxe5 {[%clk 0:02:26]}  Nxe5 {[%clk 0:02:17]} 8. Rxe5 {[%clk 0:02:26]}  d6 {[%clk 0:02:15]} 9. Re1 {[%clk 0:02:20]}  d5 {[%clk 0:02:14]} 10. Be2 {[%clk 0:02:09]}  d4 {[%clk 0:02:06]} 11. Nb1 {[%clk 0:01:54]}  O-O {[%clk 0:02:05]} 12. Bf3 {[%clk 0:01:54]}  Bd6 {[%clk 0:01:56]} 13. d3 {[%clk 0:01:54]}  h6 {[%clk 0:01:56]} 14. Nd2 {[%clk 0:01:48]}  c6 {[%clk 0:01:55]} 15. Ne4 {[%clk 0:01:30]}  Bc7 {[%clk 0:01:42]} 16. Bd2 {[%clk 0:01:22]}  Nd5 {[%clk 0:01:41]} 17. Qc1 {[%clk 0:01:16]}  Re8 {[%clk 0:01:23]} 18. c4 {[%clk 0:01:11]}  dxc3 {[%clk 0:01:14]} 19. bxc3 {[%clk 0:01:11]}  Bf5 {[%clk 0:01:05]} 20. g3 {[%clk 0:00:56]}  Nf6 {[%clk 0:00:49]} 21. Qc2 {[%clk 0:00:53]}  Nxe4 {[%clk 0:00:48]} 22. dxe4 {[%clk 0:00:50]}  Be6 {[%clk 0:00:47]} 23. Be3 {[%clk 0:00:47]}  Be5 {[%clk 0:00:46]} 24. Red1 {[%clk 0:00:45]}  Qf6 {[%clk 0:00:46]} 25. Be2 {[%clk 0:00:25]}  Bxc3 {[%clk 0:00:45]} 26. Rab1 {[%clk 0:00:24]}  Rab8 {[%clk 0:00:45]} 27. Bxa7 {[%clk 0:00:21]}  Ra8 {[%clk 0:00:46]} 28. Rxb7 {[%clk 0:00:21]}  g5 {[%clk 0:00:33]} 29. a4 {[%clk 0:00:16]}  Be5 {[%clk 0:00:30]} 30. Bc5 {[%clk 0:00:12]}  Red8 {[%clk 0:00:21]} 31. Rbb1 {[%clk 0:00:12]}  g4 {[%clk 0:00:16]} 32. Rxd8+ {[%clk 0:00:11]}  Qxd8 {[%clk 0:00:17]} 33. Rd1 {[%clk 0:00:10]}  Qa5 {[%clk 0:00:18]} 34. Kg2 {[%clk 0:00:06]}  Qxa4 {[%clk 0:00:18]} 35. Qxa4 {[%clk 0:00:07]}  Rxa4 {[%clk 0:00:19]} 36. Bd3 {[%clk 0:00:05]}  Ra2 {[%clk 0:00:18]} 37. Be3 {[%clk 0:00:05]}  Kg7 {[%clk 0:00:18]} 38. Rd2 {[%clk 0:00:05]}  Rxd2 {[%clk 0:00:16]} 39. Bxd2 {[%clk 0:00:06]}  Bd4 {[%clk 0:00:17]} 40. f4 {[%clk 0:00:05]}  gxf3+ {[%clk 0:00:17]} 41. Kxf3 {[%clk 0:00:06]}  c5 {[%clk 0:00:18]} 42. Be3 {[%clk 0:00:07]}  Bxe3 {[%clk 0:00:17]} 43. Kxe3 {[%clk 0:00:07]}  Kf6 {[%clk 0:00:18]} 44. Kf4 {[%clk 0:00:07]}  Ke7 {[%clk 0:00:18]} 45. Ba6 {[%clk 0:00:06]}  Kd6 {[%clk 0:00:18]} 46. Bb7 {[%clk 0:00:06]}  c4 {[%clk 0:00:18]} 47. Ba6 {[%clk 0:00:06]}  Kc5 {[%clk 0:00:19]} 48. Ke5 {[%clk 0:00:05]}  c3 {[%clk 0:00:19]} 49. Bd3 {[%clk 0:00:06]}  Bb3 {[%clk 0:00:20]} 50. Kf6 {[%clk 0:00:05]}  Kd4 {[%clk 0:00:20]} 51. Bb1 {[%clk 0:00:04]}  Ba2 {[%clk 0:00:21]} 52. Bc2 {[%clk 0:00:04]}  Ke3 {[%clk 0:00:22]} 53. e5 {[%clk 0:00:04]}  Kd2 {[%clk 0:00:22]} 54. Bf5 {[%clk 0:00:02]}  Bc4 {[%clk 0:00:23]} 55. Be4 {[%clk 0:00:02]}  Bd3 {[%clk 0:00:21]} 56. Bxd3 {[%clk 0:00:01]}  Kxd3 {[%clk 0:00:22]} 57. Kxf7 {[%clk 0:00:02]}  c2 {[%clk 0:00:23]} 58. e6 {[%clk 0:00:03]}  c1=Q {[%clk 0:00:24]} 59. e7 {[%clk 0:00:03]}  Qc4+ {[%clk 0:00:24]} 60. Kf8 {[%clk 0:00:03]}  Qc5 {[%clk 0:00:24]} 61. Kf7 {[%clk 0:00:03]}  Qf5+ {[%clk 0:00:24]} 62. Kg7 {[%clk 0:00:03]}  Qe6 {[%clk 0:00:25]} 63. Kf8 {[%clk 0:00:03]}  Qf6+ {[%clk 0:00:25]} 64. Kg8 {[%clk 0:00:04]}  Qxe7 {[%clk 0:00:25]} 0-1


[Site "https://www.chess.com"]

[Event "Titled Tuesday Blitz May 24 Early 2022"]
[White "Urquhart, Ed"]
[Black "Bocharov, Dmitry"]
[WhiteFideId "2603748"]
[BlackFideId "4138716"]
[WhiteElo "2184"]
[BlackElo "2541"]
[Result "0-1"]
[Round "01"]
[TimeControl "180+1"]
[Date "2022.05.25"]
[WhiteClock "0:00:19"]
[BlackClock "0:01:21"]

1. e4 {[%clk 0:03:00]}  c5 {[%clk 0:02:59]} 2. Nc3 {[%clk 0:02:59]}  a6 {[%clk 0:02:57]} 3. Nf3 {[%clk 0:02:59]}  d6 {[%clk 0:02:57]} 4. d4 {[%clk 0:02:59]}  cxd4 {[%clk 0:02:57]} 5. Nxd4 {[%clk 0:03:00]}  Nf6 {[%clk 0:02:57]} 6. Bd3 {[%clk 0:03:00]}  g6 {[%clk 0:02:55]} 7. O-O {[%clk 0:02:59]}  Bg7 {[%clk 0:02:54]} 8. Bg5 {[%clk 0:02:49]}  h6 {[%clk 0:02:50]} 9. Bh4 {[%clk 0:02:47]}  Nbd7 {[%clk 0:02:50]} 10. h3 {[%clk 0:02:41]}  Qb6 {[%clk 0:02:46]} 11. Nb3 {[%clk 0:02:41]}  Ne5 {[%clk 0:02:45]} 12. Kh1 {[%clk 0:02:37]}  Be6 {[%clk 0:02:44]} 13. f4 {[%clk 0:02:36]}  Nxd3 {[%clk 0:02:44]} 14. cxd3 {[%clk 0:02:36]}  g5 {[%clk 0:02:33]} 15. Bf2 {[%clk 0:02:29]}  Qd8 {[%clk 0:02:33]} 16. f5 {[%clk 0:02:27]}  Bd7 {[%clk 0:02:33]} 17. Bd4 {[%clk 0:02:23]}  Bc6 {[%clk 0:02:31]} 18. Rc1 {[%clk 0:02:16]}  O-O {[%clk 0:02:30]} 19. Ne2 {[%clk 0:02:12]}  e5 {[%clk 0:02:29]} 20. fxe6 {[%clk 0:02:06]}  fxe6 {[%clk 0:02:29]} 21. Ng3 {[%clk 0:02:04]}  Qe7 {[%clk 0:02:28]} 22. Nh5 {[%clk 0:01:56]}  Nxh5 {[%clk 0:02:28]} 23. Qxh5 {[%clk 0:01:56]}  e5 {[%clk 0:02:23]} 24. Be3 {[%clk 0:01:55]}  Qe6 {[%clk 0:02:02]} 25. Na5 {[%clk 0:01:44]}  Bb5 {[%clk 0:02:01]} 26. Nc4 {[%clk 0:01:43]}  Rxf1+ {[%clk 0:01:54]} 27. Rxf1 {[%clk 0:01:42]}  Bxc4 {[%clk 0:01:55]} 28. dxc4 {[%clk 0:01:42]}  Qxc4 {[%clk 0:01:56]} 29. Rf3 {[%clk 0:01:23]}  Rf8 {[%clk 0:01:53]} 30. Rxf8+ {[%clk 0:01:22]}  Kxf8 {[%clk 0:01:50]} 31. Qf3+ {[%clk 0:01:20]}  Ke7 {[%clk 0:01:49]} 32. b3 {[%clk 0:01:20]}  Qe6 {[%clk 0:01:49]} 33. Qd1 {[%clk 0:01:13]}  Bf6 {[%clk 0:01:45]} 34. Qc2 {[%clk 0:01:13]}  Kd7 {[%clk 0:01:45]} 35. Bb6 {[%clk 0:01:11]}  Bd8 {[%clk 0:01:44]} 36. Bxd8 {[%clk 0:01:09]}  Kxd8 {[%clk 0:01:45]} 37. Qd1 {[%clk 0:01:04]}  Kc7 {[%clk 0:01:43]} 38. Qh5 {[%clk 0:01:00]}  Qf6 {[%clk 0:01:42]} 39. Qe2 {[%clk 0:00:55]}  Kb8 {[%clk 0:01:37]} 40. Qc4 {[%clk 0:00:53]}  h5 {[%clk 0:01:37]} 41. a4 {[%clk 0:00:52]}  g4 {[%clk 0:01:36]} 42. hxg4 {[%clk 0:00:50]}  hxg4 {[%clk 0:01:36]} 43. Qd3 {[%clk 0:00:49]}  Kc7 {[%clk 0:01:25]} 44. b4 {[%clk 0:00:50]}  Qh4+ {[%clk 0:01:24]} 45. Kg1 {[%clk 0:00:49]}  g3 {[%clk 0:01:24]} 46. Qc4+ {[%clk 0:00:46]}  Kb8 {[%clk 0:01:24]} 47. Qe6 {[%clk 0:00:25]}  Qh2+ {[%clk 0:01:22]} 48. Kf1 {[%clk 0:00:25]}  Qh1+ {[%clk 0:01:23]} 49. Ke2 {[%clk 0:00:25]}  Qxg2+ {[%clk 0:01:23]} 50. Kd3 {[%clk 0:00:26]}  Qf3+ {[%clk 0:01:23]} 51. Kd2 {[%clk 0:00:25]}  Qf2+ {[%clk 0:01:23]} 52. Kd3 {[%clk 0:00:25]}  Qd4+ {[%clk 0:01:23]} 53. Kc2 {[%clk 0:00:25]}  Qxe4+ {[%clk 0:01:22]} 54. Kb3 {[%clk 0:00:25]}  Qd3+ {[%clk 0:01:22]} 55. Kb2 {[%clk 0:00:25]}  Ka7 {[%clk 0:01:23]} 56. Qg4 {[%clk 0:00:19]}  Qd4+ {[%clk 0:01:21]} 0-1


[Site "https://www.chess.com"]

[Event "Titled Tuesday Blitz May 24 Early 2022"]
[White "Vakhlamov, Igor L."]
[Black "Akhmedinov, Satbek"]
[WhiteFideId "24126748"]
[BlackFideId "13714287"]
[WhiteElo "2401"]
[BlackElo "1846"]
[Result "1-0"]
[Round "01"]
[TimeControl "180+1"]
[Date "2022.05.25"]
[WhiteClock "0:01:47"]
[BlackClock "0:01:23"]

1. e4 {[%clk 0:02:59]}  c5 {[%clk 0:02:59]} 2. Nf3 {[%clk 0:03:00]}  Nc6 {[%clk 0:02:59]} 3. Nc3 {[%clk 0:03:00]}  Nf6 {[%clk 0:02:59]} 4. Bb5 {[%clk 0:02:59]}  g6 {[%clk 0:02:57]} 5. Bxc6 {[%clk 0:02:56]}  dxc6 {[%clk 0:02:56]} 6. e5 {[%clk 0:02:52]}  Nd5 {[%clk 0:02:54]} 7. Ne4 {[%clk 0:02:52]}  Bg7 {[%clk 0:02:52]} 8. Nxc5 {[%clk 0:02:49]}  Nf4 {[%clk 0:02:41]} 9. O-O {[%clk 0:02:46]}  Qd5 {[%clk 0:02:39]} 10. d4 {[%clk 0:02:42]}  g5 {[%clk 0:02:28]} 11. b3 {[%clk 0:02:33]}  Bg4 {[%clk 0:02:18]} 12. Bxf4 {[%clk 0:02:30]}  gxf4 {[%clk 0:02:18]} 13. c4 {[%clk 0:02:30]}  Bxf3 {[%clk 0:02:16]} 14. cxd5 {[%clk 0:02:28]}  Bxd1 {[%clk 0:02:15]} 15. Rfxd1 {[%clk 0:02:28]}  cxd5 {[%clk 0:02:15]} 16. Nxb7 {[%clk 0:02:29]}  f6 {[%clk 0:02:10]} 17. e6 {[%clk 0:02:24]}  Rb8 {[%clk 0:02:05]} 18. Nc5 {[%clk 0:02:22]}  f5 {[%clk 0:02:04]} 19. Rac1 {[%clk 0:02:22]}  O-O {[%clk 0:02:01]} 20. Nd7 {[%clk 0:02:22]}  Rb6 {[%clk 0:01:56]} 21. Nxb6 {[%clk 0:02:16]}  axb6 {[%clk 0:01:57]} 22. Rc6 {[%clk 0:02:15]}  Ra8 {[%clk 0:01:56]} 23. a4 {[%clk 0:02:13]}  b5 {[%clk 0:01:56]} 24. axb5 {[%clk 0:02:13]}  Bxd4 {[%clk 0:01:55]} 25. g3 {[%clk 0:02:09]}  f3 {[%clk 0:01:54]} 26. Rcc1 {[%clk 0:02:09]}  Bb6 {[%clk 0:01:48]} 27. Rxd5 {[%clk 0:02:09]}  Ra2 {[%clk 0:01:47]} 28. Rf1 {[%clk 0:02:09]}  Rb2 {[%clk 0:01:45]} 29. Rd3 {[%clk 0:02:07]}  Kg7 {[%clk 0:01:44]} 30. Rxf3 {[%clk 0:02:05]}  Kf6 {[%clk 0:01:44]} 31. Re1 {[%clk 0:02:05]}  Ba5 {[%clk 0:01:43]} 32. Re4 {[%clk 0:02:00]}  Rb1+ {[%clk 0:01:36]} 33. Kg2 {[%clk 0:01:59]}  Rd1 {[%clk 0:01:32]} 34. Ref4 {[%clk 0:01:50]}  Rd5 {[%clk 0:01:31]} 35. g4 {[%clk 0:01:50]}  Kxe6 {[%clk 0:01:28]} 36. Rxf5 {[%clk 0:01:51]}  Rd1 {[%clk 0:01:27]} 37. Re3+ {[%clk 0:01:50]}  Kd7 {[%clk 0:01:27]} 38. Rf7 {[%clk 0:01:50]}  Bd8 {[%clk 0:01:23]} 39. Rxh7 {[%clk 0:01:50]}  Rd5 {[%clk 0:01:23]} 40. Rh5 {[%clk 0:01:49]}  Rd4 {[%clk 0:01:23]} 41. h3 {[%clk 0:01:49]}  Rb4 {[%clk 0:01:23]} 42. Rd5+ {[%clk 0:01:47]} 1-0


[Site "https://www.chess.com"]

[Event "Titled Tuesday Blitz May 24 Early 2022"]
[White "Visakh N R"]
[Black "Cervantes Landeiro, Thalia"]
[WhiteFideId "25012223"]
[BlackFideId "3520498"]
[WhiteElo "2448"]
[BlackElo "2021"]
[Result "1-0"]
[Round "01"]
[TimeControl "180+1"]
[Date "2022.05.24"]
[WhiteClock "0:01:25"]
[BlackClock "0:00:22"]

1. e4 {[%clk 0:02:56]}  c5 {[%clk 0:02:59]} 2. Nf3 {[%clk 0:02:54]}  d6 {[%clk 0:03:00]} 3. Bb5+ {[%clk 0:02:54]}  Nd7 {[%clk 0:02:59]} 4. O-O {[%clk 0:02:53]}  a6 {[%clk 0:02:59]} 5. Bxd7+ {[%clk 0:02:53]}  Bxd7 {[%clk 0:02:59]} 6. c4 {[%clk 0:02:53]}  Nf6 {[%clk 0:02:58]} 7. Nc3 {[%clk 0:02:53]}  g6 {[%clk 0:02:58]} 8. d4 {[%clk 0:02:53]}  cxd4 {[%clk 0:02:57]} 9. Nxd4 {[%clk 0:02:53]}  Bg7 {[%clk 0:02:57]} 10. f3 {[%clk 0:02:51]}  O-O {[%clk 0:02:57]} 11. Be3 {[%clk 0:02:51]}  Rc8 {[%clk 0:02:56]} 12. Qe2 {[%clk 0:02:51]}  Qc7 {[%clk 0:02:53]} 13. b3 {[%clk 0:02:50]}  b5 {[%clk 0:02:51]} 14. Nd5 {[%clk 0:02:48]}  Nxd5 {[%clk 0:02:50]} 15. cxd5 {[%clk 0:02:49]}  Bxd4 {[%clk 0:02:36]} 16. Bxd4 {[%clk 0:02:48]}  Qc2 {[%clk 0:02:37]} 17. Qe3 {[%clk 0:02:44]}  Qc7 {[%clk 0:02:03]} 18. h4 {[%clk 0:02:43]}  e5 {[%clk 0:01:58]} 19. dxe6 {[%clk 0:02:41]}  fxe6 {[%clk 0:01:58]} 20. Rfc1 {[%clk 0:02:29]}  Qb7 {[%clk 0:01:57]} 21. Rd1 {[%clk 0:02:29]}  e5 {[%clk 0:01:47]} 22. Bb2 {[%clk 0:02:09]}  Rc2 {[%clk 0:01:46]} 23. Rd2 {[%clk 0:02:08]}  Rfc8 {[%clk 0:01:42]} 24. Rad1 {[%clk 0:02:08]}  Be8 {[%clk 0:01:20]} 25. h5 {[%clk 0:02:01]}  Qe7 {[%clk 0:01:07]} 26. Ba3 {[%clk 0:01:55]}  Rxd2 {[%clk 0:00:58]} 27. Qxd2 {[%clk 0:01:52]}  gxh5 {[%clk 0:00:56]} 28. Bxd6 {[%clk 0:01:50]}  Qe6 {[%clk 0:00:55]} 29. Qg5+ {[%clk 0:01:49]}  Bg6 {[%clk 0:00:48]} 30. Bxe5 {[%clk 0:01:47]}  Qb6+ {[%clk 0:00:43]} 31. Kh2 {[%clk 0:01:46]}  Re8 {[%clk 0:00:42]} 32. Rd7 {[%clk 0:01:42]}  Qe6 {[%clk 0:00:37]} 33. Rg7+ {[%clk 0:01:41]}  Kf8 {[%clk 0:00:34]} 34. Qf4+ {[%clk 0:01:30]}  Bf7 {[%clk 0:00:31]} 35. Rxh7 {[%clk 0:01:29]}  Ke7 {[%clk 0:00:22]} 36. Bd6+ {[%clk 0:01:25]} 1-0


[Site "https://www.chess.com"]

[Event "Titled Tuesday Blitz May 24 Early 2022"]
[White "Vo, Thi Kim Phung"]
[Black "Timofeev, Artyom"]
[WhiteFideId "12401838"]
[BlackFideId "4140419"]
[WhiteElo "2261"]
[BlackElo "2594"]
[Result "1/2-1/2"]
[Round "01"]
[TimeControl "180+1"]
[Date "2022.05.25"]
[WhiteClock "0:00:10"]
[BlackClock "0:00:22"]

1. d4 {[%clk 0:02:56]}  Nf6 {[%clk 0:02:58]} 2. c4 {[%clk 0:02:56]}  g6 {[%clk 0:02:58]} 3. Nc3 {[%clk 0:02:56]}  d5 {[%clk 0:02:58]} 4. Bg5 {[%clk 0:02:54]}  Ne4 {[%clk 0:02:54]} 5. cxd5 {[%clk 0:02:54]}  Nxg5 {[%clk 0:02:48]} 6. h4 {[%clk 0:02:53]}  e6 {[%clk 0:02:48]} 7. hxg5 {[%clk 0:02:51]}  exd5 {[%clk 0:02:48]} 8. f4 {[%clk 0:02:51]}  c5 {[%clk 0:02:42]} 9. dxc5 {[%clk 0:02:29]}  Be6 {[%clk 0:02:37]} 10. Qd4 {[%clk 0:02:11]}  Rg8 {[%clk 0:02:37]} 11. Rxh7 {[%clk 0:01:59]}  Nc6 {[%clk 0:02:36]} 12. Qa4 {[%clk 0:01:58]}  Bxc5 {[%clk 0:02:31]} 13. Nf3 {[%clk 0:01:56]}  Qb6 {[%clk 0:02:31]} 14. O-O-O {[%clk 0:01:54]}  O-O-O {[%clk 0:02:30]} 15. Kb1 {[%clk 0:01:46]}  Kb8 {[%clk 0:02:24]} 16. Ka1 {[%clk 0:01:28]}  Be3 {[%clk 0:02:20]} 17. g3 {[%clk 0:01:23]}  d4 {[%clk 0:02:18]} 18. Ne4 {[%clk 0:01:13]}  Bf5 {[%clk 0:02:13]} 19. Nf6 {[%clk 0:01:08]}  Nb4 {[%clk 0:02:10]} 20. Ne1 {[%clk 0:01:05]}  Rh8 {[%clk 0:01:48]} 21. Rxf7 {[%clk 0:00:51]}  Rh1 {[%clk 0:01:48]} 22. Nd3 {[%clk 0:00:49]}  Nxd3 {[%clk 0:01:16]} 23. exd3 {[%clk 0:00:48]}  Qc6 {[%clk 0:01:16]} 24. Qxc6 {[%clk 0:00:42]}  bxc6 {[%clk 0:01:16]} 25. Ne4 {[%clk 0:00:37]}  Bxe4 {[%clk 0:01:03]} 26. dxe4 {[%clk 0:00:37]}  d3 {[%clk 0:01:04]} 27. Kb1 {[%clk 0:00:29]}  Rg1 {[%clk 0:00:44]} 28. e5 {[%clk 0:00:25]}  d2 {[%clk 0:00:42]} 29. Kc2 {[%clk 0:00:22]}  Rxg3 {[%clk 0:00:42]} 30. e6 {[%clk 0:00:20]}  Re8 {[%clk 0:00:38]} 31. Bc4 {[%clk 0:00:18]}  Rg4 {[%clk 0:00:35]} 32. Rxd2 {[%clk 0:00:13]}  Rxf4 {[%clk 0:00:27]} 33. Rxf4 {[%clk 0:00:11]}  Bxf4 {[%clk 0:00:27]} 34. Rf2 {[%clk 0:00:11]}  Bxg5 {[%clk 0:00:27]} 35. Rg2 {[%clk 0:00:11]}  Be7 {[%clk 0:00:27]} 36. Rxg6 {[%clk 0:00:11]}  Kc7 {[%clk 0:00:28]} 37. Rg3 {[%clk 0:00:08]}  Rd8 {[%clk 0:00:25]} 38. Rd3 {[%clk 0:00:08]}  Rxd3 {[%clk 0:00:24]} 39. Kxd3 {[%clk 0:00:09]}  a5 {[%clk 0:00:24]} 40. a4 {[%clk 0:00:09]}  Bb4 {[%clk 0:00:23]} 41. b3 {[%clk 0:00:09]}  Kd8 {[%clk 0:00:23]} 42. Ke4 {[%clk 0:00:09]}  Ke7 {[%clk 0:00:24]} 43. Kd4 {[%clk 0:00:09]}  Kd6 {[%clk 0:00:23]} 44. Ke4 {[%clk 0:00:09]}  Ke7 {[%clk 0:00:23]} 45. Kf5 {[%clk 0:00:09]}  Bc3 {[%clk 0:00:22]} 46. Ke4 {[%clk 0:00:10]}  Bb4 {[%clk 0:00:22]} 1/2-1/2


[Site "https://www.chess.com"]

[Event "Titled Tuesday Blitz May 24 Early 2022"]
[White "Vusatiuk, Vladimir"]
[Black "Zakhartsov, Vladimir"]
[WhiteFideId "14118610"]
[BlackFideId "4145097"]
[WhiteElo "2157"]
[BlackElo "2428"]
[Result "0-1"]
[Round "01"]
[TimeControl "180+1"]
[Date "2022.05.24"]
[WhiteClock "0:00:08"]
[BlackClock "0:00:20"]

1. d4 {[%clk 0:03:00]}  Nf6 {[%clk 0:02:59]} 2. Bg5 {[%clk 0:02:58]}  Ne4 {[%clk 0:02:57]} 3. Bf4 {[%clk 0:02:57]}  d5 {[%clk 0:02:56]} 4. Nd2 {[%clk 0:02:55]}  Nf6 {[%clk 0:02:52]} 5. e3 {[%clk 0:02:53]}  c5 {[%clk 0:02:52]} 6. Ngf3 {[%clk 0:02:51]}  Nc6 {[%clk 0:02:52]} 7. c4 {[%clk 0:02:51]}  cxd4 {[%clk 0:02:50]} 8. exd4 {[%clk 0:02:50]}  g6 {[%clk 0:02:50]} 9. Be2 {[%clk 0:02:42]}  Bg7 {[%clk 0:02:49]} 10. O-O {[%clk 0:02:42]}  O-O {[%clk 0:02:49]} 11. h3 {[%clk 0:02:40]}  Be6 {[%clk 0:02:44]} 12. c5 {[%clk 0:02:39]}  Ne4 {[%clk 0:02:43]} 13. Be3 {[%clk 0:02:13]}  f5 {[%clk 0:02:39]} 14. Nb3 {[%clk 0:01:38]}  f4 {[%clk 0:02:33]} 15. Bd2 {[%clk 0:01:37]}  g5 {[%clk 0:02:19]} 16. Bc3 {[%clk 0:01:27]}  Bf5 {[%clk 0:01:45]} 17. Nbd2 {[%clk 0:01:19]}  e6 {[%clk 0:01:42]} 18. Nxe4 {[%clk 0:01:03]}  dxe4 {[%clk 0:01:40]} 19. Ne5 {[%clk 0:01:03]}  Nxe5 {[%clk 0:01:24]} 20. dxe5 {[%clk 0:01:03]}  Qc7 {[%clk 0:01:25]} 21. Qd6 {[%clk 0:01:01]}  Rac8 {[%clk 0:01:26]} 22. Qxc7 {[%clk 0:00:57]}  Rxc7 {[%clk 0:01:25]} 23. Rfd1 {[%clk 0:00:55]}  Rxc5 {[%clk 0:01:11]} 24. Bb4 {[%clk 0:00:53]}  Rc2 {[%clk 0:01:12]} 25. Bxf8 {[%clk 0:00:53]}  Kxf8 {[%clk 0:01:12]} 26. Bg4 {[%clk 0:00:47]}  Bxg4 {[%clk 0:01:03]} 27. hxg4 {[%clk 0:00:48]}  Bxe5 {[%clk 0:00:57]} 28. Rd7 {[%clk 0:00:40]}  Bxb2 {[%clk 0:00:51]} 29. Rb1 {[%clk 0:00:31]}  b6 {[%clk 0:00:42]} 30. Rxa7 {[%clk 0:00:29]}  Bd4 {[%clk 0:00:42]} 31. Rxh7 {[%clk 0:00:18]}  Bxf2+ {[%clk 0:00:36]} 32. Kh1 {[%clk 0:00:18]}  Bd4 {[%clk 0:00:27]} 33. Rd7 {[%clk 0:00:15]}  e5 {[%clk 0:00:28]} 34. a4 {[%clk 0:00:09]}  Rc6 {[%clk 0:00:21]} 35. a5 {[%clk 0:00:08]}  Rh6# {[%clk 0:00:20]} 0-1


[Site "https://www.chess.com"]

[Event "Titled Tuesday Blitz May 24 Early 2022"]
[White "Wadsworth, Matthew J"]
[Black "Tan, Li Ting"]
[WhiteFideId "415804"]
[BlackFideId "5704820"]
[WhiteElo "2294"]
[BlackElo "1928"]
[Result "1-0"]
[Round "01"]
[TimeControl "180+1"]
[Date "2022.05.25"]
[WhiteClock "0:01:01"]
[BlackClock "0:00:49"]

1. c4 {[%clk 0:02:58]}  e5 {[%clk 0:02:32]} 2. g3 {[%clk 0:02:57]}  c6 {[%clk 0:02:30]} 3. d4 {[%clk 0:02:57]}  e4 {[%clk 0:02:28]} 4. Bg2 {[%clk 0:02:56]}  d5 {[%clk 0:02:27]} 5. Nc3 {[%clk 0:02:56]}  Nf6 {[%clk 0:02:27]} 6. cxd5 {[%clk 0:02:56]}  cxd5 {[%clk 0:02:26]} 7. Bg5 {[%clk 0:02:56]}  Be7 {[%clk 0:02:25]} 8. Nh3 {[%clk 0:02:55]}  Nc6 {[%clk 0:02:25]} 9. e3 {[%clk 0:02:49]}  Be6 {[%clk 0:02:24]} 10. Bxf6 {[%clk 0:02:47]}  Bxf6 {[%clk 0:02:24]} 11. Nf4 {[%clk 0:02:47]}  O-O {[%clk 0:02:22]} 12. O-O {[%clk 0:02:45]}  Qd7 {[%clk 0:02:20]} 13. f3 {[%clk 0:02:44]}  exf3 {[%clk 0:02:18]} 14. Bxf3 {[%clk 0:02:45]}  Ne7 {[%clk 0:02:18]} 15. Bg2 {[%clk 0:02:34]}  Rfd8 {[%clk 0:02:17]} 16. Qb3 {[%clk 0:02:33]}  Bg5 {[%clk 0:02:08]} 17. Rae1 {[%clk 0:02:31]}  Rac8 {[%clk 0:01:44]} 18. Nxe6 {[%clk 0:02:20]}  Qxe6 {[%clk 0:01:37]} 19. Na4 {[%clk 0:02:12]}  b6 {[%clk 0:01:35]} 20. h4 {[%clk 0:02:09]}  Bf6 {[%clk 0:01:33]} 21. Kh2 {[%clk 0:02:05]}  Qd6 {[%clk 0:01:29]} 22. Qa3 {[%clk 0:01:40]}  Qxa3 {[%clk 0:01:26]} 23. bxa3 {[%clk 0:01:41]}  Rc4 {[%clk 0:01:25]} 24. Nb2 {[%clk 0:01:39]}  Rc2 {[%clk 0:01:25]} 25. Nd3 {[%clk 0:01:37]}  Rxa2 {[%clk 0:01:24]} 26. Ra1 {[%clk 0:01:35]}  Rxa1 {[%clk 0:01:24]} 27. Rxa1 {[%clk 0:01:34]}  g5 {[%clk 0:01:17]} 28. h5 {[%clk 0:01:25]}  Rc8 {[%clk 0:01:14]} 29. Rf1 {[%clk 0:01:25]}  Bg7 {[%clk 0:01:12]} 30. Nb4 {[%clk 0:01:24]}  Rc3 {[%clk 0:01:08]} 31. Nxd5 {[%clk 0:01:24]}  Nxd5 {[%clk 0:01:07]} 32. Bxd5 {[%clk 0:01:25]}  Rxe3 {[%clk 0:01:07]} 33. Rxf7 {[%clk 0:01:24]}  Kh8 {[%clk 0:01:07]} 34. Rxa7 {[%clk 0:01:21]}  Bxd4 {[%clk 0:01:07]} 35. h6 {[%clk 0:01:18]}  Re8 {[%clk 0:01:04]} 36. Kh3 {[%clk 0:01:15]}  Be3 {[%clk 0:00:57]} 37. Kg4 {[%clk 0:01:15]}  Rf8 {[%clk 0:00:56]} 38. Be4 {[%clk 0:01:14]}  Re8 {[%clk 0:00:54]} 39. Bf5 {[%clk 0:01:09]}  b5 {[%clk 0:00:50]} 40. Rxh7+ {[%clk 0:01:09]}  Kg8 {[%clk 0:00:50]} 41. Rb7 {[%clk 0:01:10]}  Rd8 {[%clk 0:00:45]} 42. Kh5 {[%clk 0:01:05]}  Rf8 {[%clk 0:00:38]} 43. Kg6 {[%clk 0:01:04]}  Rd8 {[%clk 0:00:37]} 44. Rg7+ {[%clk 0:01:03]}  Kh8 {[%clk 0:00:37]} 45. Rh7+ {[%clk 0:01:03]}  Kg8 {[%clk 0:00:37]} 46. Be6+ {[%clk 0:01:04]}  Kf8 {[%clk 0:00:37]} 47. Rh8+ {[%clk 0:01:04]}  Ke7 {[%clk 0:00:37]} 48. Rxd8 {[%clk 0:01:04]}  Kxd8 {[%clk 0:00:38]} 49. h7 {[%clk 0:01:03]}  Bd4 {[%clk 0:00:39]} 50. Kf7 {[%clk 0:01:01]}  Kc7 {[%clk 0:00:38]} 51. Kg8 {[%clk 0:01:00]}  Kd6 {[%clk 0:00:38]} 52. Bc8 {[%clk 0:00:57]}  Kc5 {[%clk 0:00:36]} 53. h8=Q {[%clk 0:00:57]}  Bxh8 {[%clk 0:00:36]} 54. Kxh8 {[%clk 0:00:58]}  Kc4 {[%clk 0:00:36]} 55. Kg7 {[%clk 0:00:56]}  Kb3 {[%clk 0:00:37]} 56. Bd7 {[%clk 0:00:57]}  Kxa3 {[%clk 0:00:38]} 57. Bxb5 {[%clk 0:00:57]}  Kb4 {[%clk 0:00:38]} 58. Bd7 {[%clk 0:00:57]}  Kc3 {[%clk 0:00:38]} 59. Kf6 {[%clk 0:00:57]}  Kd4 {[%clk 0:00:39]} 60. Kxg5 {[%clk 0:00:58]}  Ke3 {[%clk 0:00:40]} 61. g4 {[%clk 0:00:57]}  Kd4 {[%clk 0:00:40]} 62. Kf6 {[%clk 0:00:57]}  Kd5 {[%clk 0:00:40]} 63. g5 {[%clk 0:00:57]}  Kd6 {[%clk 0:00:41]} 64. g6 {[%clk 0:00:58]}  Kxd7 {[%clk 0:00:42]} 65. g7 {[%clk 0:00:58]}  Kd6 {[%clk 0:00:43]} 66. g8=Q {[%clk 0:00:58]}  Kc5 {[%clk 0:00:43]} 67. Qe6 {[%clk 0:00:58]}  Kd4 {[%clk 0:00:43]} 68. Kf5 {[%clk 0:00:58]}  Kd3 {[%clk 0:00:44]} 69. Qe4+ {[%clk 0:00:59]}  Kd2 {[%clk 0:00:45]} 70. Kf4 {[%clk 0:00:59]}  Kd1 {[%clk 0:00:46]} 71. Qg2 {[%clk 0:00:59]}  Kc1 {[%clk 0:00:47]} 72. Ke3 {[%clk 0:01:00]}  Kb1 {[%clk 0:00:47]} 73. Kd3 {[%clk 0:01:00]}  Ka1 {[%clk 0:00:48]} 74. Kc3 {[%clk 0:01:01]}  Kb1 {[%clk 0:00:49]} 75. Qb2# {[%clk 0:01:01]} 1-0


[Site "https://www.chess.com"]